bitfinex-derivatives/quotes_BNBF0:USTF0_20250316
["timestamp","ask_amount","ask_price","bid_price","bid_amount"]
[1742117537860,2.50617599,605.44,604.3,1.352]
[1742117539563,2.50617599,605.44,604.3,2.714]
[1742117539767,0.33026735,605.57,604.3,2.714]
[1742117544269,0.33026735,605.57,604.31,1.02479492]
[1742117544474,0.33026735,605.57,604.3,2.714]
[1742117544771,0.33026735,605.57,604.31,1.02480913]
[1742117544970,0.33026735,605.57,604.3,2.714]
[1742117545166,0.33026735,605.57,604.31,1.0248093]
[1742117545370,0.33026735,605.57,604.3,2.714]
[1742117545570,0.33026735,605.57,604.31,1.22609691]
[1742117545872,0.33026735,605.57,604.32,1.22609691]
[1742117546874,0.33026735,605.57,604.33,1.22609691]
[1742117547869,0.33026735,605.57,604.3,2.714]
[1742117548069,0.33026735,605.57,604.31,1.02478487]
[1742117548274,0.33026735,605.57,604.3,2.714]
[1742117548977,0.33026735,605.57,604.31,1.22604068]
[1742117549773,0.33026735,605.57,604.32,1.22604068]
[1742117550376,0.33026735,605.57,604.31,1.22604068]
[1742117551373,0.33026735,605.57,604.3,2.714]
[1742117559489,0.33026735,605.57,604.31,1.22649833]
[1742117560385,0.33026735,605.57,604.3,1.352]
[1742117562088,0.33026735,605.57,604.31,1.22686155]
[1742117562692,0.33026735,605.57,604.3,1.352]
[1742117563790,2.50617599,605.3,604.3,2.658]
[1742117565795,2.50617599,605.35,604.3,2.658]
[1742117565996,0.33039283,605.34,604.3,2.658]
[1742117582208,2.50617599,605.25,604.3,2.658]
[1742117583308,2.83661795,605.25,604.3,2.658]
[1742117584907,0.33044196,605.25,604.3,2.658]
[1742117589006,2.50617599,605.09,604.3,2.658]
[1742117590511,2.50617599,605.02,604.3,2.658]
[1742117592413,0.33044196,605.25,604.3,2.658]
[1742117592414,2.50617599,605.03,604.3,2.658]
[1742117593217,0.33056758,605.02,604.3,2.658]
[1742117606829,2.50617599,604.99,604.3,2.658]
[1742117609523,0.33056758,605.02,604.3,2.658]
[1742117609524,2.50617599,604.84,604.3,2.658]
[1742117609926,2.50617599,604.84,604.3,1.352]
[1742117611331,0.33056758,605.02,604.3,1.352]
[1742117612931,0.33056758,605.02,604.3,2.999]
[1742117612932,2.50617599,604.94,604.3,2.999]
[1742117614234,0.33056758,605.02,604.3,2.999]
[1742117614235,2.50617599,604.93,604.3,2.999]
[1742117617226,0.33056758,605.02,604.3,2.999]
[1742117618431,2.50617599,605.32,604.3,2.999]
[1742117619029,2.50617599,605.55,604.3,2.999]
[1742117619330,0.33028371,605.54,604.3,2.999]
[1742117621634,2.50617599,605.52,604.3,2.999]
[1742117621937,0.33030007,605.51,604.3,2.999]
[1742117644754,2.50617599,605.33,604.3,2.999]
[1742117647160,2.50617599,605.27,604.3,2.999]
[1742117649157,2.50617599,605.2,604.3,2.999]
[1742117650854,2.50617599,605.2,603.95,0.28782929]
[1742117651058,2.50617599,605.11,603.96,0.63518582]
[1742117651359,2.50617599,605.11,603.97,0.63518034]
[1742117651555,2.50617599,605.11,603.98,0.63517486]
[1742117651761,2.50617599,605.11,603.99,0.63516938]
[1742117651961,2.50617599,605.11,604.0,0.63516389]
[1742117652160,2.50617599,605.11,604.01,0.33112034]
[1742117653363,2.50617599,605.08,604.01,0.33112034]
[1742117654161,2.50617599,605.08,604.02,1.119]
[1742117654358,2.50617599,605.08,604.03,0.33110938]
[1742117655859,2.50617599,604.99,604.03,0.33110938]
[1742117658067,2.50617599,605.05,604.03,0.33110938]
[1742117658861,2.50617599,605.05,604.04,1.01938558]
[1742117659062,2.50617599,605.05,604.05,0.33109841]
[1742117659966,0.33030007,605.51,604.05,0.33109841]
[1742117659967,2.50617599,605.08,604.05,0.33109841]
[1742117660360,2.50617599,605.08,604.06,1.01965681]
[1742117660560,2.50617599,605.08,604.07,0.33108745]
[1742117661367,2.50617599,605.08,604.08,1.22035809]
[1742117661566,2.50617599,605.08,604.09,0.33107649]
[1742117661769,2.50617599,605.08,604.1,1.38702186]
[1742117662069,2.50617599,605.07,604.11,1.71808942]
[1742117662263,2.50617599,605.07,604.1,3.17363607]
[1742117662264,2.50617599,605.07,604.12,1.71808394]
[1742117662468,2.50617599,605.07,604.13,1.71807846]
[1742117662769,2.50617599,605.07,604.14,1.71807298]
[1742117662969,2.50617599,605.07,604.15,1.7180675]
[1742117663170,2.50617599,605.07,604.16,1.38702389]
[1742117663370,2.50617599,605.07,604.17,1.71835239]
[1742117663565,2.50617599,605.07,604.18,1.35140978]
[1742117663765,2.50617599,605.07,604.19,1.38733118]
[1742117663968,2.50617599,605.07,604.2,1.35139882]
[1742117664165,0.33030007,605.51,604.2,0.33101621]
[1742117664364,0.33030007,605.51,604.21,0.33101074]
[1742117664567,0.33030007,605.51,604.21,1.55136883]
[1742117665173,0.33030007,605.51,604.22,1.22035809]
[1742117665365,0.33030007,605.51,604.23,0.33099978]
[1742117666070,0.33030007,605.51,604.24,1.22035809]
[1742117666274,0.33030007,605.51,604.25,0.33098882]
[1742117667673,0.33030007,605.51,604.26,1.0221667]
[1742117667867,0.33030007,605.51,604.27,1.35314457]
[1742117668068,0.33030007,605.51,604.28,0.33097239]
[1742117668469,0.33030007,605.51,604.29,1.22326589]
[1742117668669,0.33030007,605.51,604.3,0.33096144]
[1742117671375,0.33030007,605.51,604.31,1.22405678]
[1742117672374,0.33030007,605.51,604.32,1.35477369]
[1742117672575,0.33030007,605.51,604.33,0.33094501]
[1742117672972,0.33030007,605.51,604.34,1.22405678]
[1742117673177,0.33030007,605.51,604.35,0.33093406]
[1742117674279,0.33030007,605.51,604.36,1.22543387]
[1742117674572,0.33030007,605.51,604.37,0.33092311]
[1742117674777,0.33030007,605.51,604.37,1.55635698]
[1742117675280,0.33030007,605.51,604.38,1.22543387]
[1742117678474,0.33030007,605.51,604.39,1.02530142]
[1742117678678,0.33030007,605.51,604.38,1.22543387]
[1742117678879,0.33030007,605.51,604.39,1.02530138]
[1742117679079,0.33030007,605.51,604.38,1.22543387]
[1742117679879,0.33030007,605.51,604.37,0.33092311]
[1742117682579,0.33030007,605.51,604.38,2.25061454]
[1742117682881,0.33030007,605.51,604.39,0.33091215]
[1742117683082,0.33030007,605.51,604.39,1.55683918]
[1742117683675,0.33030007,605.51,604.4,1.22592703]
[1742117684078,0.33030007,605.51,604.41,1.22592703]
[1742117684681,0.33030007,605.51,604.39,0.33091215]
[1742117686386,0.33030007,605.51,604.4,1.22515679]
[1742117686680,0.33030007,605.51,604.41,1.0238768]
[1742117686983,0.33030007,605.51,604.42,2.24903359]
[1742117687178,0.33030007,605.51,604.43,1.0238768]
[1742117687382,0.33030007,605.51,604.42,1.22515679]
[1742117687586,0.33030007,605.51,604.43,1.0237058]
[1742117687885,0.33030007,605.51,604.43,1.22515679]
[1742117688282,0.33030007,605.51,604.44,1.22515679]
[1742117688984,0.33030007,605.51,604.39,0.33091215]
[1742117689180,0.33030007,605.51,604.4,1.02365694]
[1742117689380,0.33030007,605.51,604.39,0.33091215]
[1742117689580,0.33030007,605.51,604.41,1.22459471]
[1742117689988,0.33030007,605.51,604.42,1.22459471]
[1742117690781,0.33030007,605.51,604.4,1.22459471]
[1742117691687,0.33030007,605.51,604.39,0.33091215]
[1742117692987,0.33030007,605.51,604.4,1.22442762]
[1742117693387,0.33030007,605.51,604.41,1.22442762]
[1742117693989,0.33030007,605.51,604.39,0.33091215]
[1742117708196,2.50617599,605.5,604.39,0.33091215]
[1742117710697,0.33030007,605.51,604.39,0.33091215]
[1742117710698,2.50617599,605.29,604.39,0.33091215]
[1742117712703,2.50617599,605.39,604.39,0.33091215]
[1742117713608,0.330371,605.38,603.3,1.21798514]
[1742117713804,0.330371,605.38,603.84,0.28789596]
[1742117714004,0.330371,605.38,603.86,0.33120259]
[1742117714200,0.330371,605.38,603.87,1.39262843]
[1742117714403,0.330371,605.38,603.88,2.02790224]
[1742117714606,0.330371,605.38,603.89,1.72381457]
[1742117714908,0.330371,605.38,603.9,1.72380908]
[1742117715110,0.330371,605.38,603.91,1.7238036]
[1742117715309,0.330371,605.38,603.92,1.72379812]
[1742117715514,0.330371,605.38,603.93,1.72379263]
[1742117715809,0.330371,605.38,603.94,1.72378715]
[1742117716010,0.330371,605.38,603.95,4.91064342]
[1742117716212,0.330371,605.38,603.96,1.72377618]
[1742117716405,0.330371,605.38,603.97,1.7237707]
[1742117716605,0.330371,605.38,603.98,1.39262843]
[1742117716809,0.330371,605.38,603.99,1.35556887]
[1742117717009,0.330371,605.38,604.0,1.02443756]
[1742117717306,0.330371,605.38,604.01,1.02443756]
[1742117717509,2.50617599,605.26,604.02,1.02443756]
[1742117717710,2.50617599,605.26,604.01,1.22571606]
[1742117717906,2.50617599,605.26,604.02,1.02402663]
[1742117718104,2.50617599,605.26,604.01,1.22571606]
[1742117718305,2.50617599,605.26,604.02,2.2497383]
[1742117718613,2.50617599,605.26,604.02,1.22571606]
[1742117718906,2.50617599,605.26,604.03,1.22571606]
[1742117719112,2.50617599,605.31,604.03,1.22571606]
[1742117719508,2.50617599,605.31,603.99,0.33113131]
[1742117719509,2.50617599,605.31,604.04,1.22571606]
[1742117719909,2.50617599,605.31,603.99,0.33113131]
[1742117720107,2.50617599,605.31,604.0,1.02358619]
[1742117720306,2.50617599,605.31,604.01,1.02358619]
[1742117720506,2.50617599,605.31,603.99,0.33113131]
[1742117720714,0.330371,605.38,604.0,1.02345346]
[1742117720912,0.330371,605.38,604.01,1.02345346]
[1742117721113,0.330371,605.38,603.99,0.33113131]
[1742117721715,0.330371,605.38,604.0,1.02350327]
[1742117722314,0.330371,605.38,604.01,1.72233179]
[1742117722511,0.330371,605.38,604.02,4.53806784]
[1742117722708,0.330371,605.38,604.03,1.3545433]
[1742117723014,0.330371,605.38,604.04,2.57896823]
[1742117723214,0.330371,605.38,604.05,1.02343392]
[1742117723410,0.330371,605.38,604.06,2.24767341]
[1742117723613,0.330371,605.38,604.06,1.22443041]
[1742117723814,0.330371,605.38,604.07,1.02323647]
[1742117724113,0.330371,605.38,604.08,2.24766688]
[1742117724314,0.330371,605.38,604.09,1.02323647]
[1742117724514,0.330371,605.38,604.1,2.24766688]
[1742117724710,0.330371,605.38,604.1,1.22443041]
[1742117724917,0.330371,605.38,604.11,1.22443041]
[1742117725416,0.330371,605.38,604.12,1.22443041]
[1742117726216,0.330371,605.38,604.13,1.22443041]
[1742117727017,0.330371,605.38,604.04,0.3311039]
[1742117727312,0.330371,605.38,604.05,1.02283859]
[1742117727511,0.330371,605.38,604.06,2.24645438]
[1742117727720,0.330371,605.38,604.07,1.02283859]
[1742117727918,0.330371,605.38,604.08,1.02271082]
[1742117728113,0.330371,605.38,604.06,1.22361579]
[1742117728316,0.330371,605.38,604.07,1.02271082]
[1742117728619,0.330371,605.38,604.08,1.02271082]
[1742117728819,0.330371,605.38,604.07,1.22361579]
[1742117729018,0.330371,605.38,604.08,1.0225802]
[1742117729219,0.330371,605.38,604.07,1.22361579]
[1742117729419,0.330371,605.38,604.08,1.0224613]
[1742117729620,0.330371,605.38,604.09,1.22361579]
[1742117730218,0.330371,605.38,604.04,0.3311039]
[1742117730414,0.330371,605.38,604.05,1.02235744]
[1742117730615,0.330371,605.38,604.06,1.02235744]
[1742117730815,0.330371,605.38,604.06,1.22320548]
[1742117731215,0.330371,605.38,604.07,1.22320548]
[1742117732022,0.330371,605.38,604.08,1.22320548]
[1742117732616,0.330371,605.38,604.04,0.3311039]
[1742117732817,0.330371,605.38,604.05,1.02213982]
[1742117733018,0.330371,605.38,604.04,0.3311039]
[1742117733221,0.330371,605.38,604.05,1.0221345]
[1742117733422,0.330371,605.38,604.05,1.2229206]
[1742117734219,0.330371,605.38,604.06,1.2229206]
[1742117734827,0.330371,605.38,604.07,1.2229206]
[1742117735925,0.330371,605.38,604.08,1.2229206]
[1742117736726,0.330371,605.38,604.09,1.2229206]
[1742117737026,0.330371,605.38,604.1,1.71993787]
[1742117737220,0.330371,605.38,604.11,4.89866951]
[1742117737423,0.330371,605.38,604.12,1.71992691]
[1742117737626,0.330371,605.38,604.13,1.71992143]
[1742117737926,0.330371,605.38,604.14,1.71991595]
[1742117738120,0.330371,605.38,604.15,1.71990539]
[1742117738324,0.330371,605.38,604.16,1.71989991]
[1742117738523,0.330371,605.38,604.17,1.35273649]
[1742117738724,0.330371,605.38,604.18,1.35273101]
[1742117738924,0.330371,605.38,604.18,0.33102717]
[1742117739125,0.330371,605.38,604.19,1.2229206]
[1742117739826,0.330371,605.38,604.2,1.2229206]
[1742117740421,0.330371,605.38,604.18,0.33102717]
[1742117747030,2.50617599,605.33,604.18,0.33102717]
[1742117747228,0.33040375,605.32,604.18,0.33102717]
[1742117748526,2.50617599,605.3,604.18,0.33102717]
[1742117752735,2.50617599,605.29,604.18,0.33102717]
[1742117755434,0.33040375,605.32,604.18,0.33102717]
[1742117777441,0.33040375,605.32,602.91,1.21798514]
[1742117777638,0.33040375,605.32,603.03,0.33165845]
[1742117777842,0.33040375,605.32,603.04,1.69869331]
[1742117778040,0.33040375,605.32,603.15,0.33159247]
[1742117778242,0.33040375,605.32,603.16,1.69869507]
[1742117778442,0.33040375,605.32,603.26,0.331532]
[1742117778636,0.33040375,605.32,603.27,1.69869507]
[1742117778838,0.33040375,605.32,603.37,0.33147156]
[1742117779042,0.33040375,605.32,603.38,1.69869507]
[1742117779244,0.33040375,605.32,603.4,0.33145508]
[1742117779544,0.33040375,605.32,603.41,1.39449528]
[1742117779737,0.33040375,605.32,603.43,0.3314386]
[1742117779937,0.33040375,605.32,603.44,1.39449528]
[1742117780141,0.33040375,605.32,603.46,0.33142213]
[1742117780341,0.33040375,605.32,603.47,1.39449528]
[1742117780543,0.33040375,605.32,603.49,0.33140565]
[1742117780738,0.33040375,605.32,603.5,1.39449528]
[1742117780942,0.33040375,605.32,603.52,0.33138918]
[1742117781140,0.33040375,605.32,603.53,1.39449528]
[1742117781341,0.33040375,605.32,603.26,0.28797815]
[1742117781342,0.33040375,605.32,603.55,0.33137271]
[1742117781542,0.33040375,605.32,603.56,1.39449528]
[1742117781742,0.33040375,605.32,603.58,0.33135624]
[1742117781938,0.33040375,605.32,603.59,1.39449528]
[1742117782138,0.33040375,605.32,603.61,0.33133977]
[1742117782445,0.33040375,605.32,603.62,4.58543192]
[1742117782743,0.33040375,605.32,603.64,0.3313233]
[1742117782945,0.33040375,605.32,603.65,1.39415965]
[1742117783148,0.33040375,605.32,603.67,0.33130683]
[1742117783446,0.33040375,605.32,603.68,4.58543192]
[1742117783646,0.33040375,605.32,603.7,0.33129037]
[1742117783945,0.33040375,605.32,603.71,1.39415965]
[1742117784147,0.33040375,605.32,603.73,0.33127391]
[1742117784341,0.33040375,605.32,603.74,1.39300317]
[1742117784542,0.33040375,605.32,603.75,1.39300317]
[1742117784743,0.33040375,605.32,603.76,4.58427544]
[1742117785046,0.33040375,605.32,603.77,1.39300317]
[1742117785241,0.33040375,605.32,603.78,1.39300317]
[1742117785444,0.33040375,605.32,603.79,1.39300317]
[1742117785643,0.33040375,605.32,603.8,1.39300317]
[1742117785844,0.33040375,605.32,603.81,1.39300317]
[1742117786045,0.33040375,605.32,603.82,1.39281893]
[1742117786247,0.33040375,605.32,603.83,1.39281893]
[1742117786440,0.33040375,605.32,603.84,1.39281893]
[1742117786645,0.33040375,605.32,603.85,1.39281893]
[1742117786840,0.33040375,605.32,603.86,1.39281893]
[1742117787040,0.33040375,605.32,603.87,1.39281893]
[1742117787242,0.33040375,605.32,603.88,1.39281893]
[1742117787447,0.33040375,605.32,603.89,1.39281893]
[1742117787651,0.33040375,605.32,603.9,1.72399958]
[1742117787848,0.33040375,605.32,603.91,2.58316571]
[1742117788042,0.33040375,605.32,603.91,1.55858758]
[1742117788647,0.33040375,605.32,603.92,2.25197183]
[1742117788845,0.33040375,605.32,603.93,1.02453204]
[1742117789042,0.33040375,605.32,603.92,1.22741241]
[1742117789243,0.33040375,605.32,603.94,1.22741241]
[1742117789446,2.50617599,605.24,603.94,1.22741241]
[1742117789646,0.33045288,605.23,603.94,1.22741241]
[1742117789851,0.33045288,605.23,603.95,1.22741241]
[1742117790650,0.33045288,605.23,603.91,0.33117517]
[1742117791153,0.33045288,605.23,603.92,1.22569006]
[1742117791753,0.33045288,605.23,603.93,1.22569006]
[1742117792255,0.33045288,605.23,603.91,0.33117517]
[1742117798857,2.50617599,605.17,603.91,0.33117517]
[1742117799057,2.83666163,605.17,603.91,0.33117517]
[1742117800565,0.33048564,605.17,603.91,0.33117517]
[1742117805076,2.50617599,605.02,603.91,0.33117517]
[1742117807472,2.50617599,605.04,603.91,0.33117517]
[1742117809978,2.50617599,605.14,603.91,0.33117517]
[1742117810179,2.83667802,605.14,603.91,0.33117517]
[1742117811283,2.50617599,605.13,603.91,0.33117517]
[1742117813177,2.50617599,605.07,603.91,0.33117517]
[1742117818284,2.50617599,605.05,603.91,0.33117517]
[1742117820084,0.33055665,605.04,603.91,0.33117517]
[1742117820481,2.50617599,604.93,603.91,0.33117517]
[1742117821785,2.50617599,604.93,603.37,0.28812002]
[1742117821985,2.50617599,604.93,603.39,0.33146058]
[1742117822186,2.50617599,604.93,603.4,1.39264514]
[1742117822381,2.50617599,604.93,603.41,1.39264514]
[1742117822586,2.50617599,604.93,603.42,1.39264514]
[1742117822785,2.50617599,604.9,603.43,1.39264514]
[1742117822984,2.50617599,604.9,603.44,4.57873124]
[1742117823185,2.50617599,604.9,603.45,1.39264514]
[1742117823385,2.50617599,604.9,603.46,1.39264514]
[1742117823586,2.50617599,604.9,603.47,1.39264514]
[1742117823784,2.50617599,604.9,603.48,4.91014238]
[1742117823987,2.50617599,604.9,603.49,1.72405079]
[1742117824184,2.50617599,604.9,603.5,2.24981538]
[1742117824385,2.50617599,604.9,603.51,1.35579232]
[1742117824682,2.50617599,604.9,603.52,1.35578683]
[1742117824887,2.50617599,604.9,603.53,1.35578134]
[1742117825086,2.50617599,604.9,603.54,0.3313782]
[1742117825288,2.50617599,604.9,603.54,1.55679593]
[1742117825787,0.33063862,604.89,603.54,1.55679593]
[1742117825982,0.33063862,604.89,603.55,1.22541773]
[1742117826787,0.33063862,604.89,603.54,0.3313782]
[1742117831295,0.33063862,604.89,602.43,1.21798514]
[1742117831495,0.33063862,604.89,602.55,0.33192266]
[1742117831691,0.33063862,604.89,602.56,1.69259414]
[1742117831892,0.33063862,604.89,602.57,1.69259414]
[1742117832092,0.33063862,604.89,602.58,1.69259414]
[1742117832296,0.33063862,604.89,602.68,0.33185106]
[1742117832495,0.33063862,604.89,602.69,1.69259414]
[1742117832696,0.33063862,604.89,602.8,0.331785]
[1742117832896,0.33063862,604.89,602.81,1.38806861]
[1742117833097,0.33063862,604.89,602.83,0.33176849]
[1742117833396,0.33063862,604.89,602.84,1.38806861]
[1742117833592,0.33063862,604.89,602.86,0.33175198]
[1742117833797,0.33063862,604.89,602.87,1.38641748]
[1742117833997,0.33063862,604.89,602.89,0.33173547]
[1742117834297,0.33063862,604.89,602.9,1.38603782]
[1742117834494,0.33063862,604.89,602.92,0.33171896]
[1742117834698,0.33063862,604.89,602.93,1.38603782]
[1742117834898,0.28828112,604.88,602.95,0.33170246]
[1742117835099,0.33065502,604.86,602.96,1.38603782]
[1742117835299,0.33065502,604.86,602.98,0.33168595]
[1742117835601,0.33065502,604.86,602.99,1.01933039]
[1742117835799,0.33065502,604.86,603.0,1.01933039]
[1742117835994,0.33065502,604.86,602.99,1.22158689]
[1742117836200,0.33065502,604.86,602.6,0.28826202]
[1742117836201,0.33065502,604.86,603.01,1.55325634]
[1742117836496,0.33065502,604.86,603.02,0.33166395]
[1742117836800,0.33065502,604.86,603.02,1.34988203]
[1742117837000,0.33065502,604.86,603.03,4.55534584]
[1742117837204,0.33065502,604.86,603.05,0.33164745]
[1742117837498,0.33065502,604.86,603.06,1.3843605]
[1742117837695,0.33065502,604.86,603.07,1.71588515]
[1742117837897,0.33065502,604.86,603.08,1.71587965]
[1742117838097,0.33065502,604.86,603.09,1.71587415]
[1742117838297,0.33065502,604.86,603.1,1.34983804]
[1742117838497,0.33065502,604.86,603.12,0.33160896]
[1742117838693,0.33065502,604.86,603.13,1.38340012]
[1742117838894,0.33065502,604.86,603.14,1.0174957]
[1742117839100,0.33065502,604.86,603.15,0.33159247]
[1742117839498,0.33065502,604.86,603.16,1.22158689]
[1742117839700,0.33065502,604.86,603.17,1.55316836]
[1742117839900,0.33065502,604.86,603.18,0.33157598]
[1742117840100,0.33065502,604.86,603.19,1.22158689]
[1742117840494,0.33065502,604.86,603.2,0.33156498]
[1742117850514,2.50617599,604.76,603.2,0.33156498]
[1742117850813,0.33071517,604.75,603.2,0.33156498]
[1742117863924,0.28833367,604.74,603.2,0.33156498]
[1742117864124,0.33073157,604.72,603.2,0.33156498]
[1742117864430,2.50617599,604.51,603.2,0.33156498]
[1742117864629,0.33085194,604.5,603.2,0.33156498]
[1742117865830,2.50617599,604.36,603.2,0.33156498]
[1742117866229,0.33093406,604.35,603.2,0.33156498]
[1742117868429,0.33093406,604.35,601.71,1.21798514]
[1742117868633,2.50617599,604.11,602.6,0.28845317]
[1742117868935,2.50617599,604.11,602.62,0.3318841]
[1742117869231,2.50617599,604.11,602.63,1.38340941]
[1742117869431,2.50617599,604.11,602.65,0.33186758]
[1742117869639,2.50617599,604.11,602.66,1.38331812]
[1742117869936,2.50617599,604.11,602.63,3.16520215]
[1742117869937,2.50617599,604.11,602.68,0.33185106]
[1742117870131,2.50617599,604.11,602.69,1.68774338]
[1742117870333,2.50617599,604.11,602.71,0.33183454]
[1742117870534,2.50617599,604.11,602.72,1.38309955]
[1742117870732,2.50617599,604.11,602.74,0.33181803]
[1742117870932,2.50617599,604.11,602.75,1.38309955]
[1742117871136,2.50617599,604.11,602.77,0.33180151]
[1742117871641,0.33093406,604.35,602.77,0.33180151]
[1742117871842,0.33093406,604.35,602.78,1.21738544]
[1742117872139,0.33093406,604.35,602.79,0.3317905]
[1742117872933,0.33093406,604.35,602.8,1.21738544]
[1742117873135,0.33093406,604.35,602.81,0.33177949]
[1742117874542,0.33093406,604.35,602.82,3.16716266]
[1742117874741,0.33093406,604.35,602.83,0.69806039]
[1742117874942,0.33093406,604.35,602.84,4.88361377]
[1742117875153,0.33093406,604.35,602.85,1.35015371]
[1742117875336,0.33093406,604.35,602.86,1.35014821]
[1742117875535,0.33093406,604.35,602.86,0.33175198]
[1742117875841,0.33093406,604.35,602.87,1.21813948]
[1742117876042,0.33093406,604.35,602.88,0.33174097]
[1742117876440,0.33093406,604.35,602.89,1.21813948]
[1742117876743,0.33093406,604.35,602.9,0.33172997]
[1742117877645,0.33093406,604.35,602.91,1.21813948]
[1742117877844,0.33093406,604.35,602.92,0.33171896]
[1742117878841,0.33093406,604.35,602.93,1.22101179]
[1742117879045,0.33093406,604.35,602.94,0.33170796]
[1742117879745,0.33093406,604.35,601.84,1.21798514]
[1742117880047,0.33093406,604.35,601.96,0.33224798]
[1742117880348,0.33093406,604.35,601.97,1.69370195]
[1742117880646,0.33093406,604.35,602.07,0.33218728]
[1742117880843,0.33093406,604.35,602.08,1.69370195]
[1742117881040,0.33093406,604.35,602.1,0.33217073]
[1742117881245,0.33093406,604.35,602.11,1.69370195]
[1742117881440,0.33093406,604.35,602.13,0.33215418]
[1742117881643,0.33093406,604.35,602.14,1.3886772]
[1742117881843,0.28856918,604.34,602.16,0.33213763]
[1742117882042,0.33095048,604.32,602.17,1.69344919]
[1742117882249,0.33095048,604.32,602.19,0.33212109]
[1742117882545,0.33095048,604.32,602.2,1.69344919]
[1742117882750,0.33095048,604.32,602.22,0.33210454]
[1742117883052,0.33095048,604.32,602.23,1.69344919]
[1742117883247,0.33095048,604.32,602.25,0.332088]
[1742117883453,0.33095048,604.32,602.26,1.69344919]
[1742117883651,0.33095048,604.32,602.28,0.33207146]
[1742117883852,0.33095048,604.32,602.29,1.3886772]
[1742117884070,0.33095048,604.32,602.31,0.33205492]
[1742117884351,0.33095048,604.32,602.32,1.3886772]
[1742117884654,0.33095048,604.32,602.33,4.56664407]
[1742117884865,0.33095048,604.32,602.34,1.3886772]
[1742117885154,0.33095048,604.32,602.35,1.3886772]
[1742117885353,0.33095048,604.32,602.36,1.3886772]
[1742117885551,0.33095048,604.32,602.37,1.02119686]
[1742117885852,0.28860388,604.31,602.38,4.56627994]
[1742117886054,0.28860388,604.31,602.39,1.38831307]
[1742117886254,0.28860388,604.31,602.4,1.38831307]
[1742117886454,0.28860388,604.31,602.41,1.38831307]
[1742117886654,0.28860388,604.31,602.42,1.38822044]
[1742117886854,0.28860388,604.31,602.43,1.38822044]
[1742117887055,0.28860388,604.31,602.44,1.38822044]
[1742117887255,0.28860388,604.31,602.45,4.56618731]
[1742117887453,0.28860388,604.31,602.46,1.38822044]
[1742117887755,0.33095048,604.32,602.47,1.38822044]
[1742117887954,0.33095048,604.32,602.48,1.38822044]
[1742117888154,0.33095048,604.32,602.49,1.38822044]
[1742117888355,0.33095048,604.32,602.51,0.33194469]
[1742117888557,0.33095048,604.32,602.52,1.38822044]
[1742117888855,0.33095048,604.32,602.54,0.33192817]
[1742117889055,0.33095048,604.32,602.55,1.38822044]
[1742117889354,0.33095048,604.32,602.56,1.72013759]
[1742117889549,0.33095048,604.32,602.57,0.69875486]
[1742117889754,0.33095048,604.32,602.58,1.38672621]
[1742117889955,0.33095048,604.32,602.59,1.71862683]
[1742117890258,0.33095048,604.32,602.61,0.33188961]
[1742117890556,0.33095048,604.32,602.62,1.69139718]
[1742117890753,0.33095048,604.32,602.64,0.33187309]
[1742117890953,0.33095048,604.32,602.65,1.69139718]
[1742117891150,0.33095048,604.32,602.66,1.69139718]
[1742117891354,0.33095048,604.32,602.68,0.33185106]
[1742117891551,0.33095048,604.32,602.69,1.32455396]
[1742117891751,0.33095048,604.32,602.7,1.69137199]
[1742117892057,0.33095048,604.32,602.71,1.71853556]
[1742117892256,0.33095048,604.32,602.72,1.71853006]
[1742117892456,0.33095048,604.32,602.73,1.38670102]
[1742117892651,0.33095048,604.32,602.74,1.71851905]
[1742117892856,0.33095048,604.32,602.75,1.71851354]
[1742117893054,0.33095048,604.32,602.76,1.35169001]
[1742117893254,0.33095048,604.32,602.77,2.57397945]
[1742117893457,0.33095048,604.32,602.78,1.02006861]
[1742117893756,0.33095048,604.32,602.79,1.55408545]
[1742117893953,0.33095048,604.32,602.8,0.331785]
[1742117894358,0.33095048,604.32,602.81,1.22229495]
[1742117894658,0.33095048,604.32,602.82,0.33177399]
[1742117894852,0.33095048,604.32,602.82,1.55406894]
[1742117895259,0.33095048,604.32,602.83,1.22229495]
[1742117895458,0.33095048,604.32,602.84,0.33176298]
[1742117895857,0.33095048,604.32,602.85,1.22229495]
[1742117896057,0.33095048,604.32,602.86,0.33175198]
[1742117902262,0.33095048,604.32,602.4,0.28850817]
[1742117902462,0.33095048,604.32,602.41,1.71981858]
[1742117902662,0.33095048,604.32,602.42,1.71981306]
[1742117902862,0.28865654,604.31,602.43,1.71980755]
[1742117903057,0.33096691,604.29,602.44,1.71980204]
[1742117903258,0.33096691,604.29,602.45,4.89577053]
[1742117903457,0.33096691,604.29,602.46,1.35267598]
[1742117903659,0.33096691,604.29,602.47,0.33196673]
[1742117904060,2.50617599,604.18,602.48,1.02073424]
[1742117904261,0.33103813,604.16,602.49,0.33195571]
[1742117904462,0.33103813,604.16,602.49,1.55348417]
[1742117905868,0.28859311,604.15,602.49,1.55348417]
[1742117906161,0.33105457,604.13,602.49,1.55348417]
[1742117906362,2.83723056,604.13,602.49,0.33195571]